bitfinex/quotes_ETHUSD_20250823
["timestamp","ask_amount","ask_price","bid_price","bid_amount"]
[1755927179371,0.002,4748.2,4747.8,0.66]
[1755927179519,0.002,4749.9,4748.2,0.66]
[1755927179520,0.002,4749.7,4748.2,0.66]
[1755927179718,0.002,4749.7,4748.5,0.7656]
[1755927179917,0.002,4749.7,4748.5,6.26019889]
[1755927180132,0.002,4749.7,4748.5,6.23913961]
[1755927180647,0.002,4749.7,4748.5,6.39743188]
[1755927180859,0.002,4749.7,4748.5,8.28010811]
[1755927181468,0.4727,4749.6,4748.5,8.28010811]
[1755927182452,0.002,4749.6,4748.5,8.28010811]
[1755927182652,0.4707,4749.4,4748.5,8.28010811]
[1755927183650,0.4707,4749.4,4748.5,8.0020685]
[1755927184072,0.4707,4749.4,4748.5,8.28010811]
[1755927186798,0.002,4749.6,4748.6,0.66]
[1755927187106,0.002,4749.6,4749.0,13.03850939]
[1755927187299,0.002,4749.6,4749.1,3.66]
[1755927187466,0.002,4749.6,4749.2,7.25755617]
[1755927187796,0.002,4749.6,4749.2,7.77020928]
[1755927187976,0.002,4749.6,4749.2,7.59884161]
[1755927188383,0.002,4749.6,4749.2,7.320802]
[1755927188690,0.002,4749.6,4749.2,9.39378655]
[1755927189311,0.002,4749.6,4749.2,14.45178655]
[1755927190004,0.002,4749.6,4749.2,11.18682616]
[1755927190169,0.7714,4749.3,4749.2,7.13098455]
[1755927190375,0.7714,4749.3,4749.2,8.6]
[1755927193691,0.7714,4749.3,4749.2,5.058]
[1755927193891,0.7714,4749.3,4749.2,8.6]
[1755927194978,0.002,4749.3,4749.2,20.94500939]
[1755927195182,0.002,4749.3,4749.2,21.256549]
[1755927195383,0.002,4749.3,4749.2,24.0107039]
[1755927196100,0.002,4749.3,4749.2,24.0442039]
[1755927198078,0.002,4749.3,4749.2,24.0107039]
[1755927198677,0.7424,4749.3,4749.2,10.7276549]
[1755927200219,0.7424,4749.3,4749.2,10.8332549]
[1755927200415,0.4544,4749.3,4749.2,10.8332549]
[1755927200614,0.002,4749.3,4749.2,10.8332549]
[1755927200817,0.002,4749.3,4749.2,10.8667549]
[1755927201425,0.002,4749.3,4749.2,10.8332549]
[1755927202234,0.002,4749.3,4749.2,11.5267549]
[1755927202824,0.29,4749.3,4749.2,7.2912549]
[1755927203028,0.7424,4749.3,4749.2,7.2912549]
[1755927203223,0.7424,4749.3,4749.2,10.8332549]
[1755927207730,0.7424,4749.3,4749.2,7.2912549]
[1755927207930,0.7424,4749.3,4749.2,10.8322549]
[1755927209321,0.7424,4749.3,4749.2,8.7046]
[1755927210114,0.7424,4749.3,4749.2,5.1636]
[1755927210318,0.7424,4749.3,4749.2,8.7046]
[1755927210637,0.002,4749.3,4749.2,8.7046]
[1755927213013,0.7424,4749.3,4749.2,8.7046]
[1755927213209,0.7424,4749.3,4749.2,7.26856094]
[1755927213541,0.7424,4749.3,4749.2,10.80956094]
[1755927215522,0.7424,4749.3,4749.2,12.42756094]
[1755927217416,0.4544,4749.3,4749.2,12.42756094]
[1755927217821,0.4544,4749.3,4749.2,11.35947904]
[1755927218340,0.7424,4749.3,4749.2,11.35947904]
[1755927219716,0.002,4749.3,4749.2,7.81847904]
[1755927219944,0.002,4749.3,4749.2,12.01947904]
[1755927220246,0.002,4749.3,4749.2,12.33101865]
[1755927220445,0.002,4749.3,4749.2,12.05297904]
[1755927221748,0.7424,4749.3,4749.2,7.81847904]
[1755927221940,0.7424,4749.3,4749.2,9.2545181]
[1755927222343,0.7424,4749.3,4749.2,5.7135181]
[1755927222537,0.7424,4749.3,4749.2,9.2545181]
[1755927224953,0.7424,4749.3,4749.2,5.2646]
[1755927225157,0.7424,4749.3,4749.2,1.7236]
[1755927225345,0.7424,4749.3,4749.2,5.2646]
[1755927226954,0.7424,4749.3,4749.2,1.7236]
[1755927227158,0.7424,4749.3,4749.2,5.2646]
[1755927231650,0.7424,4749.3,4749.2,1.7236]
[1755927232295,0.7424,4749.3,4749.2,5.2646]
[1755927234285,0.002,4749.3,4749.2,5.2646]
[1755927234447,0.7498,4749.3,4749.2,1.7236]
[1755927234634,0.7498,4749.3,4749.2,3.066]
[1755927237385,0.002,4749.3,4749.2,3.066]
[1755927237740,0.002,4749.3,4749.2,3.3712]
[1755927238576,0.002,4749.3,4749.2,3.69713207]
[1755927239688,0.3169,4749.3,4749.2,3.39193207]
[1755927239855,0.3169,4749.3,4748.5,1.618]
[1755927240058,0.7498,4749.3,4748.6,3.541]
[1755927240282,0.3169,4749.3,4748.7,3.541]
[1755927240592,0.4329,4749.2,4748.7,3.541]
[1755927240761,0.4329,4749.2,4748.8,0.02105795]
[1755927240959,0.002,4749.3,4748.8,0.02105795]
[1755927241506,0.4349,4749.3,4748.7,3.541]
[1755927241797,0.4329,4749.2,4748.7,3.541]
[1755927241975,0.4329,4749.2,4748.5,1.618]
[1755927242170,0.4329,4749.2,4748.6,4.93740094]
[1755927242375,0.4329,4749.2,4748.6,1.39640094]
[1755927242573,0.3149,4748.7,4748.5,1.618]
[1755927242799,0.7478,4748.7,4748.6,3.541]
[1755927242993,0.3149,4748.7,4748.6,3.541]
[1755927243195,0.3149,4748.7,4748.5,1.618]
[1755927243701,0.3149,4748.7,4748.6,3.541]
[1755927244219,0.3149,4748.7,4748.5,1.618]
[1755927244566,0.002,4749.3,4748.6,3.8462]
[1755927244920,0.002,4749.3,4748.6,3.541]
[1755927245126,0.3149,4748.6,4748.5,1.618]
[1755927245411,0.7478,4748.6,4748.5,5.159]
[1755927245591,0.7478,4748.6,4748.5,5.2646]
[1755927245792,0.7478,4748.6,4748.5,1.7236]
[1755927245991,0.7478,4748.6,4748.5,5.2646]
[1755927247009,0.4349,4749.3,4748.5,5.2646]
[1755927247166,0.4349,4749.3,4748.8,0.02]
[1755927247362,0.3149,4748.9,4748.8,0.02]
[1755927247598,0.3149,4748.9,4748.8,3.6666]
[1755927248094,0.7478,4748.9,4748.8,3.6666]
[1755927250075,0.002,4749.3,4748.8,3.9718]
[1755927250394,0.002,4749.3,4749.2,0.1056]
[1755927250704,0.002,4749.3,4749.2,3.6466]
[1755927250910,0.002,4749.3,4749.2,3.9518]
[1755927251912,0.002,4749.3,4749.2,3.97285617]
[1755927252123,0.002,4749.3,4749.2,3.9518]
[1755927252577,0.002,4749.3,4749.2,3.97285617]
[1755927252777,0.002,4749.3,4749.2,4.39347562]
[1755927255482,0.002,4749.3,4749.2,4.41453179]
[1755927255680,0.002,4749.3,4749.2,4.39347562]
[1755927256625,0.002,4749.3,4749.2,4.41453179]
[1755927257627,0.002,4749.3,4749.2,4.85843179]
[1755927257812,0.002,4749.3,4749.2,4.83737562]
[1755927258198,0.002,4749.3,4749.2,4.39347562]
[1755927258399,0.002,4749.3,4749.2,4.41453179]
[1755927262459,0.002,4749.3,4749.2,4.84793179]
[1755927262668,0.002,4749.3,4749.2,4.82687562]
[1755927263154,0.002,4749.3,4749.2,4.39347562]
[1755927263319,0.002,4749.3,4749.2,4.41453179]
[1755927265265,0.002,4749.3,4749.2,4.84793179]
[1755927265563,0.002,4749.3,4749.2,4.39347562]
[1755927265863,0.002,4749.3,4749.2,4.41453179]
[1755927267261,0.002,4749.3,4749.2,4.39347562]
[1755927269952,0.002,4749.3,4749.2,6.01147562]
[1755927271119,0.002,4749.3,4749.2,6.44487562]
[1755927271521,0.002,4749.3,4749.2,7.10487562]
[1755927273322,0.002,4749.3,4749.2,7.36152676]
[1755927273922,0.002,4749.3,4749.2,10.36152676]
[1755927277469,0.002,4750.3,4749.3,3.0]
[1755927277761,0.02,4754.8,4750.4,5.88]
[1755927277762,0.4506,4752.1,4750.4,5.88]
[1755927277958,0.4506,4751.7,4750.7,1.054]
[1755927278120,0.4506,4751.7,4750.7,10.27666498]
[1755927278321,0.4506,4751.7,4750.7,10.27766498]
[1755927278761,0.4506,4751.7,4751.6,12.34500939]
[1755927278961,0.764,4751.7,4751.6,17.52900939]
[1755927279137,0.764,4751.7,4751.6,17.63460939]
[1755927279337,0.764,4751.7,4751.6,19.31080715]
[1755927280661,0.764,4751.7,4751.6,15.74480715]
[1755927280860,0.764,4751.7,4751.6,19.30980715]
[1755927281269,0.764,4751.7,4751.6,15.74480715]
[1755927281436,0.3134,4751.7,4751.6,19.30880715]
[1755927281637,0.764,4751.7,4751.6,19.30880715]
[1755927282275,0.764,4751.7,4751.6,14.06860939]
[1755927282766,0.764,4751.7,4751.6,17.63160939]
[1755927282974,0.764,4751.7,4751.6,1.7236]
[1755927283275,0.764,4751.7,4751.6,5.2856]
[1755927283971,0.654,4751.7,4751.6,5.2856]
[1755927285255,0.654,4751.7,4751.6,7.04866094]
[1755927286070,0.654,4751.7,4751.6,7.04666094]
[1755927288867,0.654,4751.7,4751.6,7.04466094]
[1755927289068,0.654,4751.7,4751.6,5.2816]
[1755927289789,0.2034,4751.7,4751.6,5.2816]
[1755927290192,0.6649,4751.7,4751.6,5.2816]
[1755927293689,0.6649,4751.7,4751.6,5.2826]
[1755927294094,0.6669,4751.7,4751.6,5.2826]
[1755927294408,0.6669,4751.7,4751.6,7.04536094]
[1755927296207,0.6669,4751.7,4751.6,3.48736094]
[1755927296404,0.6669,4751.7,4751.6,7.04036094]
[1755927298595,0.2054,4751.7,4751.6,7.04036094]
[1755927299183,0.002,4751.7,4751.6,7.04036094]
[1755927299676,0.002,4752.2,4751.7,0.66]
[1755927299881,0.002,4752.7,4752.6,12.34500939]
[1755927300077,0.3092,4752.7,4752.6,18.02879637]
[1755927300326,0.3092,4752.7,4752.6,18.13439637]
[1755927300480,0.3092,4752.7,4752.6,20.23383601]
[1755927300481,0.002,4752.7,4752.6,20.23383601]
[1755927300919,0.002,4752.7,4752.6,19.94783601]
[1755927301210,0.7707,4752.7,4752.6,19.94783601]
[1755927302186,0.7707,4752.7,4752.6,19.43204903]
[1755927302422,0.7707,4752.7,4752.6,17.61860939]
[1755927302834,0.002,4752.7,4752.6,17.61860939]
[1755927303314,0.7707,4752.7,4752.6,17.61860939]
[1755927303615,0.7707,4752.7,4752.6,14.06760939]
[1755927303915,0.7707,4752.7,4752.6,17.61760939]
[1755927309324,0.002,4752.7,4752.6,17.61760939]
[1755927309639,0.002,4752.7,4752.6,20.18115731]
[1755927309937,0.3092,4752.7,4752.6,16.34515731]
[1755927310130,0.7707,4752.7,4752.6,19.37837033]
[1755927311042,0.7707,4752.7,4752.6,14.06760939]
[1755927311240,0.7707,4752.7,4752.6,17.61660939]
[1755927311408,0.002,4752.7,4752.6,17.61760939]
[1755927311740,0.002,4752.7,4752.6,18.13339637]
[1755927312463,0.3092,4752.7,4752.6,17.61760939]
[1755927312643,0.002,4752.7,4752.6,17.61760939]
[1755927312811,0.002,4752.7,4752.6,19.89515731]
[1755927315947,0.002,4752.7,4752.6,20.18115731]
[1755927316648,0.002,4752.7,4752.6,19.89515731]
[1755927316826,0.7707,4752.7,4752.6,19.37937033]
[1755927317261,0.7707,4752.7,4752.6,18.71913433]
[1755927317659,0.3092,4752.7,4752.6,18.71913433]
[1755927317859,0.7707,4752.7,4752.6,18.71613433]
[1755927318453,0.3092,4752.7,4752.6,18.71613433]
[1755927318949,0.002,4752.7,4752.6,18.71613433]
[1755927319332,0.002,4752.7,4752.6,19.00583433]
[1755927319532,0.002,4753.2,4752.6,19.00583433]
[1755927319753,0.002,4753.2,4752.7,2.6584431]
[1755927319932,0.002,4753.2,4753.1,12.34500939]
[1755927320134,0.002,4753.2,4753.1,15.99580939]
[1755927320645,0.002,4753.2,4753.1,16.28550939]
[1755927321066,0.002,4753.2,4753.1,16.71400939]
[1755927321265,0.002,4753.2,4753.1,18.61683054]
[1755927322066,0.3046,4753.2,4753.1,15.99580939]
[1755927322372,0.3046,4753.2,4753.1,12.44980939]
[1755927322670,0.7408,4753.2,4753.1,15.99580939]
[1755927323375,0.7408,4753.2,4753.1,16.28550939]
[1755927323376,0.002,4753.2,4753.1,16.28550939]
[1755927323538,0.002,4753.2,4753.1,15.99580939]
[1755927323870,0.3046,4753.2,4753.1,15.99580939]
[1755927324034,0.7408,4753.2,4753.1,3.6508]
[1755927324868,0.7408,4753.2,4753.1,0.1048]
[1755927325073,0.7408,4753.2,4753.1,3.6538]
[1755927325251,0.7408,4753.2,4753.1,0.1048]
[1755927325593,0.7408,4753.2,4753.1,3.6538]
[1755927326067,0.7408,4753.2,4753.1,0.1048]
[1755927326484,0.7408,4753.2,4753.1,3.6528]
[1755927326683,0.7408,4753.2,4753.1,0.1048]
[1755927326884,0.7408,4753.2,4753.1,3.6528]
[1755927327037,0.002,4753.2,4753.1,3.6528]
[1755927327233,0.3046,4753.2,4753.1,3.6528]
[1755927328277,0.002,4753.2,4753.1,16.28750939]
[1755927328438,0.002,4753.2,4753.1,17.92036435]
[1755927331362,0.3046,4753.2,4753.1,15.99780939]
[1755927331580,0.7408,4753.2,4753.1,12.44980939]
[1755927331756,0.7408,4753.2,4753.1,15.99580939]
[1755927332291,0.7408,4753.2,4753.1,3.6508]
[1755927332596,0.7408,4753.2,4752.6,0.001]
[1755927332763,0.4362,4753.1,4752.6,0.001]
[1755927333102,0.3026,4752.7,4752.6,0.001]
[1755927333709,0.7388,4752.7,4752.6,0.001]
[1755927334509,0.7388,4752.7,4752.6,3.55]
[1755927337622,0.3026,4752.7,4752.6,3.55]
[1755927338687,0.7388,4752.7,4752.6,0.001]
[1755927339089,0.7388,4752.7,4752.6,3.55]
[1755927339690,0.7388,4752.7,4752.6,0.001]
[1755927340095,0.3026,4752.7,4752.6,0.001]
[1755927340295,0.7388,4752.7,4752.6,0.001]
[1755927343126,0.8863805,4752.7,4752.6,0.001]
[1755927345550,1.5463805,4752.7,4752.6,0.001]
[1755927346190,0.4501805,4752.7,4752.6,0.001]
[1755927346403,0.002,4753.2,4752.6,15.11616906]
[1755927346727,0.002,4753.2,4752.7,3.588]
[1755927347232,0.002,4753.2,4753.1,0.2897]
[1755927347397,0.002,4753.2,4753.1,3.589]
[1755927348138,0.002,4753.2,4753.1,3.8787]
[1755927348439,0.002,4753.2,4753.1,4.30942]
[1755927348609,0.002,4753.2,4753.1,4.77602]
[1755927349947,0.002,4753.2,4753.1,0.72042]
[1755927350100,0.002,4753.2,4753.1,3.8807]
[1755927351235,0.002,4753.2,4753.1,0.2897]
[1755927351444,0.002,4753.2,4752.6,14.04726839]
[1755927351975,0.002,4753.2,4752.7,3.589]
[1755927352416,0.002,4753.2,4752.6,14.04726839]
[1755927352617,0.002,4753.2,4752.7,5.03938684]
[1755927353159,0.4643,4753.2,4752.7,1.45138684]
[1755927353364,0.4643,4753.2,4752.8,3.588]
[1755927354058,0.002,4753.2,4752.8,3.588]
[1755927354567,0.002,4753.2,4753.1,0.2979]
[1755927355445,0.2515,4753.2,4753.1,0.2979]
[1755927355645,0.2515,4753.2,4753.1,0.62652652]
[1755927356280,0.2515,4753.2,4753.1,0.87802652]
[1755927356790,0.2515,4753.2,4753.1,1.44942652]
[1755927358887,0.2515,4753.2,4753.1,0.98282652]
[1755927359194,0.2515,4753.2,4753.1,13.79443591]
[1755927359780,0.2515,4753.2,4753.1,17.37743591]
[1755927360889,0.2515,4753.2,4753.1,13.79443591]
[1755927361064,0.2515,4753.2,4753.1,17.37543591]
[1755927361269,0.2515,4753.2,4753.1,13.79443591]
[1755927361484,0.2515,4753.2,4753.1,17.37543591]
[1755927362490,0.2515,4753.2,4753.1,13.79443591]
[1755927362695,0.2515,4753.2,4753.1,4.56282652]
[1755927363884,0.2515,4753.2,4753.1,4.56182652]
[1755927364608,0.2515,4753.2,4753.1,4.01242652]
[1755927365216,0.2515,4753.2,4753.1,0.43342652]
[1755927365412,0.2515,4753.2,4753.1,3.6838]
[1755927365779,0.2515,4753.2,4753.1,3.6828]
[1755927366175,0.2515,4753.2,4753.1,3.9807]
[1755927366581,0.2515,4753.2,4753.1,3.6828]
[1755927368017,0.2515,4753.2,4753.1,3.9807]
[1755927368312,0.2515,4753.2,4753.1,4.38077]
[1755927368695,0.2515,4753.2,4753.1,4.84737]
[1755927368892,0.2515,4753.2,4753.1,4.74257]
[1755927369093,0.2515,4753.2,4753.1,4.84737]
[1755927369307,0.2515,4753.2,4753.1,0.80277]
[1755927369489,0.2515,4753.2,4753.1,3.6798]
[1755927370113,0.5441,4753.2,4753.1,3.6798]
[1755927370283,1.0064,4753.2,4753.1,3.6798]
[1755927370897,0.5441,4753.2,4753.1,3.6798]
[1755927372198,0.2515,4753.2,4753.1,3.6798]
[1755927372392,0.5441,4753.2,4753.1,4.05388402]
[1755927372586,1.0064,4753.2,4753.1,4.05388402]
[1755927372808,0.2515,4753.2,4753.1,4.35178402]
[1755927374186,0.2515,4753.2,4753.1,17.16339341]
[1755927376630,0.2515,4753.2,4753.1,13.58639341]
[1755927376822,0.2515,4753.2,4753.1,17.16239341]
[1755927377208,0.2515,4753.2,4753.1,13.58639341]
[1755927377535,0.2515,4753.2,4753.1,17.16139341]
[1755927379024,0.2515,4753.2,4753.1,17.15939341]
[1755927382129,0.2515,4753.2,4753.1,16.69279341]
[1755927382330,0.2515,4753.2,4753.1,16.69179341]
[1755927384139,0.2515,4753.2,4753.1,17.14059341]
[1755927385831,0.2515,4753.2,4753.1,13.11979341]
[1755927386030,0.2515,4753.2,4753.1,16.39089341]
[1755927386454,0.5637,4753.2,4753.1,12.82189341]
[1755927386655,1.0121,4753.2,4753.1,16.38989341]
[1755927387168,0.2515,4753.2,4753.1,16.69579341]
[1755927387340,0.2515,4753.2,4753.1,13.57659341]
[1755927387535,0.2515,4753.2,4753.1,17.14459341]
[1755927387761,0.2515,4753.2,4753.1,16.69579341]
[1755927388771,0.2515,4753.2,4753.1,16.38989341]
[1755927389076,0.2515,4753.2,4753.1,16.69579341]
[1755927390268,0.2515,4753.2,4753.1,16.69479341]
[1755927392292,0.5637,4753.2,4753.1,16.38589341]
[1755927393591,0.5637,4753.2,4753.1,12.82189341]
[1755927393759,0.5637,4753.2,4753.1,16.38589341]
[1755927394385,0.5637,4753.2,4753.1,12.82189341]
[1755927394576,0.2515,4753.2,4753.1,16.38489341]
[1755927395369,0.2515,4753.2,4753.1,16.69079341]
[1755927399196,0.2515,4753.2,4753.1,16.38489341]
[1755927399560,0.5637,4753.2,4753.1,12.82189341]
[1755927399800,1.0121,4753.2,4753.1,16.38189341]
[1755927400594,1.0121,4753.2,4753.1,16.38089341]
[1755927400800,0.2515,4753.2,4753.1,16.38089341]
[1755927401294,1.0121,4753.2,4753.1,16.38089341]
[1755927401500,1.0121,4753.2,4753.1,12.82189341]
[1755927401963,1.0121,4753.2,4753.1,16.37989341]
[1755927402358,1.0121,4753.2,4753.1,12.44980939]
[1755927402560,1.0521,4753.2,4753.1,16.00680939]
[1755927403183,1.0521,4753.2,4753.1,7.144122]
[1755927403614,1.0521,4753.2,4753.1,7.248922]
[1755927403971,1.0521,4753.2,4753.1,3.6618]
[1755927404603,1.0521,4753.2,4753.1,0.1048]
[1755927404807,0.6037,4753.2,4753.1,3.6648]
[1755927404980,1.0521,4753.2,4753.1,5.26798496]
[1755927406173,1.0521,4753.2,4753.1,3.6648]
[1755927409223,1.0521,4753.2,4753.1,0.1048]
[1755927409407,1.0521,4753.2,4753.1,3.6638]
[1755927409610,0.6037,4753.2,4753.1,3.6638]
[1755927410301,0.2915,4753.2,4753.1,3.6638]
[1755927410496,0.2915,4753.2,4753.1,3.6648]
[1755927410816,0.2915,4753.2,4753.1,5.26588094]
[1755927411809,0.6022,4753.2,4753.1,5.26588094]
[1755927412221,0.6022,4753.2,4753.1,0.1058]
[1755927412407,1.0611,4753.2,4753.1,0.001]
[1755927412595,1.0611,4753.2,4753.1,3.571]
[1755927415949,0.6022,4753.2,4753.1,3.571]
[1755927416317,0.6022,4753.2,4753.1,5.188]
[1755927416515,1.0611,4753.2,4753.1,5.188]
[1755927416813,0.6022,4753.2,4753.1,5.188]
[1755927417626,1.0611,4753.2,4753.1,5.188]
[1755927418952,0.6022,4753.2,4753.1,5.188]
[1755927419132,0.2915,4753.2,4753.1,5.4936]
[1755927419911,0.042,4753.2,4753.1,5.4936]
[1755927420353,0.042,4753.2,4753.1,5.87251325]
[1755927420731,0.042,4753.2,4753.1,6.34741325]
[1755927421416,0.042,4753.2,4753.1,7.00741325]
[1755927422449,0.042,4753.2,4753.1,6.45121325]
[1755927424744,0.3527,4753.2,4753.1,1.7228]
[1755927424929,0.3527,4753.2,4753.1,5.186]
[1755927424930,0.8116,4753.2,4753.1,5.186]
[1755927425841,0.8116,4753.2,4753.1,5.187]
[1755927426057,0.8116,4753.2,4753.1,5.188]
[1755927426264,0.8116,4753.2,4753.1,1.618]
[1755927426626,0.8116,4753.2,4753.1,5.187]
[1755927427256,0.042,4753.2,4753.1,5.187]
[1755927427477,0.042,4753.2,4753.1,6.03775487]
[1755927428826,0.042,4753.2,4753.1,6.51265487]
[1755927431256,0.042,4753.2,4753.1,6.03675487]
[1755927431774,0.042,4753.2,4753.1,6.12100187]
[1755927432792,0.042,4753.2,4753.1,1.702247]
[1755927432793,0.3527,4753.2,4753.1,1.702247]
[1755927432975,0.042,4753.2,4753.1,5.5968859]
[1755927433152,0.042,4753.2,4753.1,2.007847]
[1755927433347,0.042,4753.2,4753.1,1.702247]
[1755927433554,0.3527,4753.2,4753.1,5.270247]
[1755927434476,0.042,4753.2,4753.1,5.270247]
[1755927434845,0.042,4753.2,4753.1,5.375047]
[1755927435492,0.042,4753.2,4753.1,8.375047]
[1755927435647,0.8116,4753.2,4753.1,8.375047]
[1755927435842,0.8116,4753.2,4753.1,4.807047]
[1755927436074,0.8116,4753.2,4753.1,8.374047]
[1755927436891,0.8116,4753.2,4753.1,4.807047]
[1755927437080,0.8116,4753.2,4753.1,8.373047]
[1755927437588,0.8116,4753.2,4753.1,5.373047]
[1755927438378,0.042,4753.2,4753.1,5.664547]
[1755927438577,0.042,4753.2,4753.1,10.91690264]
[1755927439204,0.042,4753.2,4753.1,10.46560264]
[1755927440459,0.042,4753.2,4753.1,10.46460264]
[1755927441667,0.042,4753.2,4753.1,6.89960264]
[1755927442009,0.042,4753.2,4753.1,6.60810264]
[1755927442179,0.042,4753.2,4753.1,10.17110264]
[1755927442564,0.042,4753.2,4753.1,10.46260264]
[1755927443511,0.042,4753.2,4753.1,10.91390264]
[1755927444011,0.042,4753.2,4753.1,10.46560264]
[1755927444218,0.042,4753.2,4753.1,4.807047]
[1755927444514,0.7897,4753.2,4753.1,5.374047]
[1755927444716,0.3565,4753.2,4753.1,5.374047]
[1755927445010,0.042,4753.2,4753.1,8.665547]
[1755927446708,0.042,4753.2,4753.1,5.098547]
[1755927446913,0.042,4753.2,4753.1,5.3170017]
[1755927447216,0.042,4753.2,4753.1,8.8820017]
[1755927448102,0.042,4753.2,4753.1,9.1735017]
[1755927448504,0.042,4753.2,4753.1,8.8820017]
[1755927450707,0.042,4753.2,4753.1,9.1735017]
[1755927452783,0.7897,4753.2,4753.1,21.22701109]
[1755927453506,0.3565,4753.2,4753.1,21.22701109]
[1755927453682,0.7897,4753.2,4753.1,4.807047]
[1755927453883,0.7897,4753.2,4753.1,8.368047]
[1755927454877,0.7897,4753.2,4753.1,8.6315957]
[1755927455174,0.042,4753.2,4753.1,8.6315957]
[1755927455397,0.042,4753.2,4753.1,8.659547]
[1755927455597,0.042,4753.2,4753.1,10.76010264]
[1755927458307,0.042,4753.2,4753.1,10.46860264]
[1755927458513,0.042,4753.2,4753.1,10.46760264]
[1755927458716,0.042,4753.2,4753.1,6.90760264]
[1755927458928,0.042,4753.2,4753.1,10.46760264]
[1755927459385,0.3565,4753.2,4753.1,10.46760264]
[1755927459710,0.3565,4753.2,4753.1,6.90760264]
[1755927460011,0.3565,4753.2,4753.1,10.46760264]
[1755927460513,0.3565,4753.2,4753.1,10.46660264]
[1755927460710,0.042,4753.2,4753.1,10.46660264]
[1755927461792,0.042,4753.2,4753.1,10.75810264]
[1755927462818,0.3565,4753.2,4753.1,10.46660264]
[1755927463179,0.7897,4753.2,4753.1,10.46560264]
[1755927463381,0.7897,4753.2,4753.1,8.365047]
[1755927463580,0.7897,4753.2,4753.1,5.365047]
[1755927465216,0.7897,4753.2,4753.1,5.364047]
[1755927470890,0.7897,4753.2,4753.1,1.807047]
[1755927471090,0.7897,4753.2,4753.1,5.360047]
[1755927472593,0.7897,4753.2,4753.1,5.2758]
[1755927473593,0.7897,4753.2,4753.1,1.618]
[1755927473792,0.8945,4753.2,4753.1,5.171]
[1755927477335,0.042,4753.2,4753.1,5.171]
[1755927477503,0.042,4753.2,4753.1,5.486]
[1755927481024,0.042,4753.2,4753.1,1.618]
[1755927481342,0.042,4753.2,4753.1,5.17]
[1755927481497,0.042,4753.2,4753.1,5.485]
[1755927481724,0.042,4753.2,4753.1,5.9301]
[1755927481924,0.042,4753.2,4753.1,8.533878]
[1755927482544,0.042,4753.2,4753.1,11.533878]
[1755927487448,0.042,4753.2,4753.1,11.638678]
[1755927490232,0.042,4753.2,4753.1,11.176778]
[1755927491645,0.042,4753.2,4753.1,11.638678]
[1755927495980,0.042,4753.2,4753.1,11.176778]
[1755927496768,0.002,4753.7,4753.1,11.176778]
[1755927496935,0.002,4753.7,4753.6,15.34500939]
[1755927497132,0.002,4753.7,4753.6,18.99880939]
[1755927497383,0.7429,4753.7,4753.6,18.99880939]
[1755927497544,0.7429,4753.7,4753.6,19.44390939]
[1755927497739,0.2978,4753.7,4753.6,19.44390939]
[1755927497944,0.002,4753.7,4753.6,21.89197298]
[1755927498459,0.002,4753.7,4753.6,21.57697298]
[1755927498776,0.002,4753.7,4753.6,21.87447298]
[1755927498960,0.002,4753.7,4753.6,22.32017298]
[1755927500243,0.002,4753.7,4753.6,22.53447298]
[1755927501146,0.002,4753.7,4753.6,21.87447298]
[1755927506171,0.002,4754.2,4753.7,3.0]
[1755927506371,0.002,4754.2,4754.1,15.64250939]
[1755927506684,0.002,4754.7,4754.1,15.64250939]
[1755927506685,0.002,4754.7,4754.2,3.0]
[1755927506890,0.002,4754.7,4754.6,12.64250939]
[1755927507065,0.002,4754.7,4754.6,16.19050939]
[1755927507259,0.002,4754.7,4754.6,16.29530939]
[1755927507500,0.002,4754.7,4754.6,17.62734033]
[1755927507699,0.002,4754.7,4754.6,18.06214033]
[1755927508068,0.3045,4754.7,4754.6,18.06214033]
[1755927508803,0.3045,4754.7,4754.6,21.06214033]
[1755927509161,0.7393,4754.7,4754.6,21.06214033]
[1755927509781,0.3045,4754.7,4754.6,21.06214033]
[1755927509981,0.002,4754.7,4754.6,21.06214033]
[1755927510297,0.002,4754.7,4754.6,21.25484033]
[1755927512996,0.7393,4754.7,4754.6,20.95734033]
[1755927513197,0.7393,4754.7,4754.6,5.06433094]
[1755927513198,0.3045,4754.7,4754.6,5.06433094]
[1755927513373,0.3045,4754.7,4754.6,19.32780939]
[1755927513573,0.002,4754.7,4754.6,19.32780939]
[1755927513888,0.002,4754.7,4754.6,19.62530939]
[1755927517015,0.4368,4755.2,4754.7,3.0]
[1755927517016,0.002,4755.2,4754.7,3.0]
[1755927517186,0.002,4755.2,4755.1,0.2975]
[1755927517506,0.002,4755.2,4755.1,8.4605]
[1755927517813,0.002,4755.2,4755.1,8.8953]
[1755927518267,0.002,4755.2,4755.1,5.3483]
[1755927518467,0.002,4755.2,4755.1,8.8953]
[1755927518663,0.002,4755.2,4755.1,10.57771767]
[1755927519184,0.02,4757.8,4755.1,7.03071767]
[1755927519384,0.00591,4759.0,4758.8,2.218]
[1755927519584,0.00591,4759.0,4758.9,6.244]
[1755927519585,0.44071,4759.0,4758.9,6.244]
[1755927519786,0.44071,4759.0,4758.1,1.87397446]
[1755927519787,0.44071,4759.0,4758.1,4.035]
[1755927520079,0.3025,4758.7,4758.2,4.058]
[1755927520286,0.4348,4758.6,4758.2,0.44071]
[1755927520470,0.3025,4758.3,4758.2,0.44071]